[Event "CHN-chW 2019"]
[Site "Xinghua"]
[Date "2019.05.13"]
[Round "3.11"]
[White "Xiao, Yiyi"]
[Black "Ni, Shiqun"]
[Result "1-0"]
[ECO "D46"]
[WhiteElo "2290"]
[BlackElo "2439"]
[Annotator "ChessBase"]
[PlyCount "73"]
[EventDate "2019.05.11"]
[EventType "tourn"]
[EventCountry "CHN"]
[SourceTitle "playchess.com"]
[Source "ChessBase"]
[SourceQuality "1"]
[TimeControl "5400+30"]

1. Nf3 {[%emt 0:00:09]} d5 {[%emt 0:00:00]} 2. d4 {[%emt 0:00:12]} Nf6 {[%emt 0:00:00]} 3. c4 {[%emt 0:00:42]} c6 {[%emt 0:00:00]} 4. Nc3 {[%emt 0:00:44]} e6 {[%emt 0:00:53]} 5. e3 {[%emt 0:00:58]} Nbd7 {[%emt 0:00:04]} 6. Qc2 {[%emt 0:00:14]} Bd6 {[%emt 0:00:08]} 7. Be2 {[%emt 0:00:15]} O-O {[%emt 0:00:19]} 8. O-O {[%emt 0:00:06]} dxc4 {[%emt 0:00:13]} 9. Bxc4 {[%emt 0:00:13]} b5 {[%emt 0:00:02]} 10. Be2 {[%emt 0:00:07]} Bb7 {[%emt 0:00:15]} 11. Rd1 {[%emt 0:04:03]} Qc7 {[%emt 0:00:12]} 12. e4 {[%emt 0:00:47]} e5 {[%emt 0:00:02]} 13. Bg5 {[%emt 0:00:47]} exd4 {[%emt 0:04:42]} 14. Rxd4 {[%emt 0:00:08]} Ne5 {[%emt 0:00:04]} 15. Bxf6 {[%emt 0:00:20]} gxf6 {[%emt 0:03:24]} 16. g3 {[%emt 0:00:37]} Nxf3+ {[%emt 0:00:11]} 17. Bxf3 {[%emt 0:00:06]} Be5 {[%emt 0:00:02]} 18. Rd3 {[%emt 0:11:20]} Rad8 {[%emt 0:04:26]} 19. Rad1 {[%emt 0:01:55]} Bc8 {[%emt 0:05:48]} 20. Qd2 {[%emt 0:20:34]} Rxd3 {[%emt 0:04:25]} 21. Qxd3 {[%emt 0:00:05]} Be6 {[%emt 0:00:42]} 22. a3 {[%emt 0:18:10]} Qb6 {[%emt 0:14:26]} 23. Kg2 {[%emt 0:01:43]} a5 {[%emt 0:00:19]} 24. Ne2 {[%emt 0:37:45]} Bxb2 {[%emt 0:17:51]} 25. Nf4 {[%emt 0:00:30]} Bc4 {[%emt 0:44:02]} 26. Qd2 {[%emt 0:00:30]} Be5 {[%emt 0:00:00]} 27. Nh5 {[%emt 0:00:00]} Qc7 {[%emt 0:00:00]} 28. Bg4 {[%emt 0:00:00]} f5 {[%emt 0:00:00]} 29. Qg5+ {[%emt 0:00:00]} Kh8 {[%emt 0:00:00]} 30. Qh6 {[%emt 0:00:00]} Rg8 {[%emt 0:00:00]} 31. Bxf5 {[%emt 0:00:00]} Rg6 {[%emt 0:00:00]} 32. Bxg6 {[%emt 0:00:00]} fxg6 {[%emt 0:00:00]} 33. Qf8+ {[%emt 0:00:00]} Bg8 {[%emt 0:00:00]} 34. Rd8 {[%emt 0:00:00]} Qxd8 {[%emt 0:00:00]} 35. Qxd8 {[%emt 0:00:00]} gxh5 {[%emt 0:00:00]} 36. Qxa5 {[%emt 0:00:00]} Bd4 {[%emt 0:00:00]} 37. f4 {[%emt 0:00:00]} 1-0

[Event "CHN-chW 2019"]
[Site "Xinghua"]
[Date "2019.05.14"]
[Round "4.7"]
[White "Guo, Qi"]
[Black "Chu, Ruotong"]
[Result "1-0"]
[ECO "D20"]
[WhiteElo "2361"]
[BlackElo "2180"]
[Annotator "NA RC"]
[PlyCount "73"]
[EventDate "2019.05.11"]
[EventType "tourn"]
[EventCountry "CHN"]
[SourceTitle "playchess.com"]
[Source "ChessBase"]
[SourceQuality "1"]
[TimeControl "5400+30"]

1. d4 {[%emt 0:00:00]} d5 {[%emt 0:00:00]} 2. c4 {[%emt 0:00:00]} dxc4 {[%emt 0:00:00]} 3. e4 {[%emt 0:00:00]} e5 {[%emt 0:00:05]} 4. Nf3 {[%emt 0:00:08]} exd4 {[%emt 0:00:04]} 5. Bxc4 {[%emt 0:00:08]} Bb4+ {[%emt 0:00:05]} 6. Nbd2 {[%emt 0:00:06]} Nc6 {[%emt 0:00:06]} 7. O-O {[%emt 0:00:11]} Nf6 {[%emt 0:05:21]} 8. e5 {[%emt 0:00:15]} Nd5 {[%emt 0:00:04]} 9. Nb3 {[%emt 0:00:06]} Be7 {[%emt 0:00:04]} 10. Nbxd4 {[%emt 0:10:23]} Nxd4 {[%emt 0:03:04]} 11. Qxd4 {[%emt 0:02:07]} Nb6 {[%emt 0:00:07]} 12. Bb3 {[%emt 0:04:53]} Qxd4 {[%emt 0:00:10]} 13. Nxd4 {[%emt 0:00:06]} O-O {[%emt 0:00:04]} 14. a4 {[%emt 0:06:50]} c5 {[%emt 0:08:48]} 15. Nb5 {[%emt 0:01:40]} Be6 {[%emt 0:08:04]} 16. Bxe6 {[%emt 0:06:03]} fxe6 {[%emt 0:04:56]} 17. Nc7 {[%emt 0:00:18]} Rac8 {[%emt 0:00:03]} 18. Nxe6 {[%emt 0:00:11]} Rf5 {[%emt 0:00:03]} 19. Re1 {[%emt 0:00:40]} Nc4 {[%emt 0:11:17]} 20. f4 {[%emt 0:07:22]} h5 {[%emt 0:00:23]} 21. a5 {[%emt 0:03:49]} Kf7 {[%emt 0:23:10]} 22. Nxg7 {[%emt 0:09:37]} Kxg7 {[%emt 0:00:30]} 23. b3 {[%emt 0:00:04]} Nd6 {[%emt 0:03:54]} 24. exd6 {[%emt 0:01:27]} Bxd6 {[%emt 0:00:44]} 25. Bb2+ {[%emt 0:00:48]} Kf7 {[%emt 0:05:46]} 26. Rad1 {[%emt 0:08:06]} Bxf4 {[%emt 0:10:05]} 27. Rd7+ {[%emt 0:00:06]} Kf8 {[%emt 0:00:05]} 28. Rxb7 {[%emt 0:04:02]} Rc7 {[%emt 0:00:52]} 29. a6 {[%emt 0:02:21]} Rcf7 {[%emt 0:05:23]} 30. g3 {[%emt 0:06:07]} Be3+ {[%emt 0:00:26]} 31. Rxe3 {[%emt 0:00:06]} Rf1+ {[%emt 0:00:04]} 32. Kg2 {[%emt 0:00:04]} R1f2+ {[%emt 0:02:02]} 33. Kh3 {[%emt 0:00:04]} Rxb2 {[%emt 0:00:05]} 34. Rc3 {[%emt 0:01:44]} Rff2 {[%emt 0:03:12]} 35. Kh4 {[%emt 0:00:06]} Rxh2+ {[%emt 0:00:28]} 36. Kg5 {[%emt 0:00:03]} Rhd2 {[%emt 0:01:13]} 37. Rxc5 {[%emt 0:01:45]} 1-0

[Event "CHN-chW 2019"]
[Site "Xinghua"]
[Date "2019.05.14"]
[Round "4.9"]
[White "Qiu, Mengjie"]
[Black "Xiao, Yiyi"]
[Result "0-1"]
[ECO "C48"]
[WhiteElo "2219"]
[BlackElo "2290"]
[Annotator "NA RC"]
[PlyCount "116"]
[EventDate "2019.05.11"]
[EventType "tourn"]
[EventCountry "CHN"]
[SourceTitle "playchess.com"]
[Source "ChessBase"]
[SourceQuality "1"]
[TimeControl "5400+30"]

1. e4 {[%emt 0:00:00]} e5 {[%emt 0:00:00]} 2. Nf3 {[%emt 0:00:00]} Nc6 {[%emt 0:00:00]} 3. Nc3 {[%emt 0:00:13]} Nf6 {[%emt 0:04:47]} 4. Bb5 {[%emt 0:00:23]} Nd4 {[%emt 0:08:50]} 5. Nxd4 {[%emt 0:01:36]} exd4 {[%emt 0:00:05]} 6. e5 {[%emt 0:00:04]} dxc3 {[%emt 0:03:59]} 7. exf6 {[%emt 0:00:05]} Qxf6 {[%emt 0:01:05]} 8. dxc3 {[%emt 0:00:05]} c6 {[%emt 0:09:17]} 9. Bd3 {[%emt 0:03:32]} d5 {[%emt 0:00:14]} 10. O-O {[%emt 0:02:51]} Be6 {[%emt 0:05:33]} 11. Be3 {[%emt 0:09:28]} Bd6 {[%emt 0:01:13]} 12. Qh5 {[%emt 0:02:38]} g6 {[%emt 0:11:52]} 13. Bg5 {[%emt 0:19:23]} Qxc3 {[%emt 0:07:23]} 14. bxc3 {[%emt 0:03:11]} gxh5 {[%emt 0:00:02]} 15. Bf6 {[%emt 0:00:13]} Rg8 {[%emt 0:02:05]} 16. Rab1 {[%emt 0:07:07]} b6 {[%emt 0:01:50]} 17. Bxh7 {[%emt 0:06:44]} Rg4 {[%emt 0:00:09]} 18. g3 {[%emt 0:04:34]} Ra4 {[%emt 0:02:15]} 19. f4 {[%emt 0:01:59]} Bh3 {[%emt 0:00:22]} 20. Rfe1+ {[%emt 0:01:09]} Kd7 {[%emt 0:00:09]} 21. Rbd1 {[%emt 0:03:45]} b5 {[%emt 0:11:46]} 22. Be5 {[%emt 0:09:31]} Rxa2 {[%emt 0:01:13]} 23. Bxd6 {[%emt 0:01:42]} Kxd6 {[%emt 0:00:02]} 24. Re5 {[%emt 0:00:45]} f6 {[%emt 0:03:03]} 25. Re3 {[%emt 0:01:19]} f5 {[%emt 0:00:41]} 26. Bg6 {[%emt 0:20:43]} Rxc2 {[%emt 0:00:44]} 27. Bxh5 {[%emt 0:00:00]} a5 {[%emt 0:24:51]} 28. Bf7 {[%emt 0:00:00]} Kc5 {[%emt 0:00:00]} 29. Be8 {[%emt 0:00:00]} a4 {[%emt 0:01:00]} 30. Re6 {[%emt 0:00:00]} Ra6 {[%emt 0:00:00]} 31. Rh6 {[%emt 0:00:00]} a3 {[%emt 0:00:00]} 32. Rxh3 {[%emt 0:00:00]} a2 {[%emt 0:00:00]} 33. Rh6 {[%emt 0:00:08]} Rb2 {[%emt 0:00:00]} 34. Re6 {[%emt 0:00:52]} Rb1 {[%emt 0:00:00]} 35. Ree1 {[%emt 0:00:04]} Rxd1 {[%emt 0:00:00]} 36. Rxd1 {[%emt 0:00:03]} a1=Q {[%emt 0:00:00]} 37. Rxa1 {[%emt 0:00:01]} Rxa1+ {[%emt 0:00:00]} 38. Kf2 {[%emt 0:01:00]} Ra2+ {[%emt 0:00:00]} 39. Kg1 {[%emt 0:00:54]} Kd6 {[%emt 0:00:00]} 40. h4 {[%emt 0:02:16]} Ra8 {[%emt 0:00:00]} 41. Bh5 {[%emt 0:00:57]} c5 {[%emt 0:00:00]} 42. Kf2 {[%emt 0:00:45]} Ra3 {[%emt 0:06:30]} 43. Be2 {[%emt 0:00:42]} b4 {[%emt 0:00:00]} 44. cxb4 {[%emt 0:00:19]} cxb4 {[%emt 0:00:00]} 45. h5 {[%emt 0:01:29]} Ke6 {[%emt 0:01:30]} 46. g4 {[%emt 0:00:00]} fxg4 {[%emt 0:00:00]} 47. Bxg4+ {[%emt 0:00:00]} Kf6 {[%emt 0:00:00]} 48. Ke1 {[%emt 0:00:38]} Rc3 {[%emt 0:00:00]} 49. Kd2 {[%emt 0:00:33]} Rc4 {[%emt 0:00:00]} 50. Bd1 {[%emt 0:00:39]} Rxf4 {[%emt 0:00:00]} 51. Kc2 {[%emt 0:00:36]} Rf1 {[%emt 0:00:00]} 52. Bg4 {[%emt 0:00:22]} Ke5 {[%emt 0:00:00]} 53. Kb3 {[%emt 0:00:28]} Rb1+ {[%emt 0:00:00]} 54. Ka4 {[%emt 0:00:19]} Kd4 {[%emt 0:00:00]} 55. Be6 {[%emt 0:00:49]} Kc4 {[%emt 0:00:00]} 56. Ka5 {[%emt 0:00:14]} b3 {[%emt 0:00:00]} 57. Bf5 {[%emt 0:00:17]} Rh1 {[%emt 0:00:00]} 58. Bg6 {[%emt 0:00:11]} b2 {[%emt 0:00:00]} 0-1

[Event "CHN-chW 2019"]
[Site "Xinghua"]
[Date "2019.05.15"]
[Round "5.7"]
[White "Shen, Yang"]
[Black "Guo, Qi"]
[Result "1/2-1/2"]
[ECO "D75"]
[WhiteElo "2449"]
[BlackElo "2361"]
[Annotator "RC"]
[PlyCount "56"]
[EventDate "2019.05.11"]
[EventType "tourn"]
[EventCountry "CHN"]
[SourceTitle "playchess.com"]
[Source "ChessBase"]
[SourceQuality "1"]
[TimeControl "5400+30"]

1. c4 {[%emt 0:00:00]} Nf6 {[%emt 0:00:08]} 2. Nf3 {[%emt 0:00:10]} g6 {[%emt 0:00:43]} 3. g3 {[%emt 0:00:22]} c5 {[%emt 0:02:24]} 4. Bg2 {[%emt 0:01:02]} Bg7 {[%emt 0:00:57]} 5. Nc3 {[%emt 0:00:12]} d5 {[%emt 0:03:23]} 6. cxd5 {[%emt 0:02:06]} Nxd5 {[%emt 0:00:09]} 7. d4 {[%emt 0:00:15]} Nc6 {[%emt 0:00:20]} 8. O-O {[%emt 0:00:26]} O-O {[%emt 0:00:13]} 9. Nxd5 {[%emt 0:02:17]} Qxd5 {[%emt 0:00:11]} 10. Be3 {[%emt 0:00:20]} cxd4 {[%emt 0:01:48]} 11. Nxd4 {[%emt 0:00:08]} Qa5 {[%emt 0:00:05]} 12. Nxc6 {[%emt 0:01:56]} bxc6 {[%emt 0:00:08]} 13. Bxc6 {[%emt 0:00:05]} Rb8 {[%emt 0:00:04]} 14. Qd5 {[%emt 0:01:17]} Qxd5 {[%emt 0:01:43]} 15. Bxd5 {[%emt 0:00:06]} Rxb2 {[%emt 0:00:05]} 16. Bxa7 {[%emt 0:02:44]} Bb7 {[%emt 0:00:08]} 17. Bc4 {[%emt 0:00:09]} Ra8 {[%emt 0:00:07]} 18. Be3 {[%emt 0:00:10]} Ba6 {[%emt 0:00:19]} 19. Bxa6 {[%emt 0:00:10]} Rxa6 {[%emt 0:00:07]} 20. a4 {[%emt 0:00:08]} Be5 {[%emt 0:01:50]} 21. Rfd1 {[%emt 0:00:53]} Rxe2 {[%emt 0:00:06]} 22. Ra3 {[%emt 0:00:10]} Bd6 {[%emt 0:00:05]} 23. Raa1 {[%emt 0:00:11]} Be5 {[%emt 0:00:04]} 24. Rd8+ {[%emt 0:00:18]} Kg7 {[%emt 0:00:05]} 25. Ra3 {[%emt 0:00:34]} Bd6 {[%emt 0:00:20]} 26. Ra1 {[%emt 0:00:29]} Be5 {[%emt 0:00:22]} 27. Ra3 {[%emt 0:00:12]} Bd6 {[%emt 0:00:05]} 28. Ra1 {[%emt 0:00:11]} Be5 {[%emt 0:00:07]} 1/2-1/2

[Event "CHN-chW 2019"]
[Site "Xinghua"]
[Date "2019.05.15"]
[Round "5.10"]
[White "Xiao, Yiyi"]
[Black "Ning, Kaiyu"]
[Result "1-0"]
[ECO "E04"]
[WhiteElo "2290"]
[BlackElo "2256"]
[Annotator "NA RC"]
[PlyCount "77"]
[EventDate "2019.05.11"]
[EventType "tourn"]
[EventCountry "CHN"]
[SourceTitle "playchess.com"]
[Source "ChessBase"]
[SourceQuality "1"]
[TimeControl "5400+30"]

1. d4 {[%emt 0:00:00]} d5 {[%emt 0:00:00]} 2. c4 {[%emt 0:00:00]} e6 {[%emt 0:00:00]} 3. Nf3 {[%emt 0:00:27]} Nf6 {[%emt 0:00:00]} 4. g3 {[%emt 0:00:18]} dxc4 {[%emt 0:00:00]} 5. Bg2 {[%emt 0:00:05]} Nc6 {[%emt 0:00:00]} 6. Qa4 {[%emt 0:02:00]} Bb4+ {[%emt 0:00:06]} 7. Bd2 {[%emt 0:00:09]} Nd5 {[%emt 0:00:06]} 8. Bxb4 {[%emt 0:03:10]} Ndxb4 {[%emt 0:00:02]} 9. O-O {[%emt 0:01:08]} Rb8 {[%emt 0:04:43]} 10. Nc3 {[%emt 0:02:24]} a6 {[%emt 0:01:04]} 11. Ne5 {[%emt 0:02:09]} O-O {[%emt 0:00:08] E04: Open Catalan: 5 Nf3} 12. Bxc6 {[%emt 0:00:39]} Nxc6 {[%emt 0:00:43]} 13. Nxc6 {[%emt 0:00:06]} bxc6 {[%emt 0:00:03]} 14. Qxc4 {[%emt 0:00:06]} Qd6 {[%emt 0:00:04]} 15. e3 {[%emt 0:01:49]} (15. b3 Rb4 16. Ne4 Qxd4 17. Qxd4 Rxd4 18. f3 e5 19. Kf2 {½-½ (39) Bluebaum,M (2642)-Lupulescu,C (2609) Germany 2016}) 15... Rxb2 {[%emt 0:05:18]} 16. Rab1 {[%emt 0:00:16]} Rb6 {[%emt 0:00:03]} 17. Rfc1 {[%emt 0:08:05]} e5 {[%emt 0:29:37]} 18. Ne4 $146 {[%emt 0:28:22]} ({Predecessor:} 18. Rxb6 cxb6 19. dxe5 Qxe5 20. Qxc6 Qa5 21. Nd5 Be6 {½-½ (21) Tabunchik,V (2399)-Hansen,P (2337) ICCF corr 2009}) 18... Qe6 {[%emt 0:07:53]} 19. Qxe6 {[%emt 0:02:20]} Bxe6 {[%emt 0:01:51]} 20. dxe5 {[%emt 0:00:15]} Bxa2 {[%emt 0:01:33]} 21. Ra1 $11 {[%emt 0:04:01]} Rb2 {[%emt 0:13:17]} 22. Nc5 {[%emt 0:09:49]} Rd8 {[%emt 0:19:54]} 23. Na4 {[%emt 0:05:39]} Rbd2 {[%emt 0:00:22]} 24. Nc3 {[%emt 0:00:07]} Bb3 {[%emt 0:03:09]} 25. Rxa6 {[%emt 0:02:41]} c5 {[%emt 0:07:21]} 26. Rc6 {[%emt 0:00:19]} c4 {[%emt 0:00:20]} 27. Rxc7 {[%emt 0:00:12]} h6 {[%emt 0:00:31]} 28. Kg2 {[%emt 0:09:06]} R8d3 {[%emt 0:00:27]} 29. Kf3 {[%emt 0:00:06]} Rb2 {[%emt 0:00:51]} 30. Ne4 {[%emt 0:00:50]} Rd5 {[%emt 0:01:09]} 31. Kf4 {[%emt 0:01:29]} Ra2 {[%emt 0:00:12]} 32. h4 {[%emt 0:03:49]} Raa5 {[%emt 0:00:24]} 33. Rc8+ {[%emt 0:00:19]} Kh7 {[%emt 0:05:19]} 34. Re8 {[%emt 0:00:06]} Ra7 {[%emt 0:00:00]} 35. h5 {[%emt 0:01:08]} Ba4 {[%emt 0:00:00]} 36. Ra1 {[%emt 0:00:52]} Rda5 {[%emt 0:00:00]} 37. Rc8 {[%emt 0:00:20]} f6 {[%emt 0:00:50]} 38. exf6 {[%emt 0:01:08]} Rxh5 {[%emt 0:00:01]} 39. Rxa4 {[%emt 0:01:48]} 1-0

[Event "CHN-chW 2019"]
[Site "Xinghua"]
[Date "2019.05.16"]
[Round "6.9"]
[White "Ning, Kaiyu"]
[Black "Zhai, Mo"]
[Result "1/2-1/2"]
[ECO "E05"]
[WhiteElo "2256"]
[BlackElo "2365"]
[Annotator "NA RC"]
[PlyCount "90"]
[EventDate "2019.05.11"]
[EventType "tourn"]
[EventCountry "CHN"]
[SourceTitle "playchess.com"]
[Source "ChessBase"]
[SourceQuality "1"]
[TimeControl "5400+30"]

1. d4 {[%emt 0:00:00]} Nf6 {[%emt 0:00:00]} 2. c4 {[%emt 0:00:00]} e6 {[%emt 0:00:00]} 3. g3 {[%emt 0:00:00]} d5 {[%emt 0:00:18]} 4. Bg2 {[%emt 0:00:00]} Be7 {[%emt 0:00:09]} 5. Nf3 {[%emt 0:00:07]} O-O {[%emt 0:00:09]} 6. O-O {[%emt 0:00:07]} dxc4 {[%emt 0:00:58]} 7. Ne5 {[%emt 0:00:09]} Nc6 {[%emt 0:02:42]} 8. Bxc6 {[%emt 0:00:19]} bxc6 {[%emt 0:00:02]} 9. Nxc6 {[%emt 0:00:05]} Qe8 {[%emt 0:00:16]} 10. Nxe7+ {[%emt 0:00:06]} Qxe7 {[%emt 0:00:02]} 11. Qa4 {[%emt 0:00:09]} c5 {[%emt 0:02:07]} 12. Qa3 {[%emt 0:01:23]} Bb7 {[%emt 0:02:47]} 13. Nc3 $14 {[%emt 0:13:26]} Qc7 {[%emt 0:15:57]} 14. dxc5 {[%emt 0:13:40]} Rfc8 {[%emt 0:01:56]} 15. Rd1 {[%emt 0:04:11]} h6 {[%emt 0:05:03]} 16. f3 {[%emt 0:06:47]} Qxc5+ {[%emt 0:01:45]} 17. Qxc5 {[%emt 0:00:04]} Rxc5 {[%emt 0:00:05]} 18. Be3 {[%emt 0:00:15]} Rcc8 {[%emt 0:04:02]} 19. Rd2 {[%emt 0:04:04]} Nd5 {[%emt 0:04:09]} 20. Nxd5 {[%emt 0:00:47]} Bxd5 {[%emt 0:00:11]} 21. Bd4 {[%emt 0:00:07]} Bc6 {[%emt 0:03:24]} 22. Rc1 {[%emt 0:13:21]} Bb5 {[%emt 0:02:39]} 23. Bc3 {[%emt 0:00:21]} Ba4 {[%emt 0:02:57]} 24. Rd4 {[%emt 0:00:21]} Rab8 {[%emt 0:02:23]} 25. Kf2 {[%emt 0:02:48]} f6 {[%emt 0:02:21]} 26. Rd6 {[%emt 0:07:51]} Rb6 {[%emt 0:00:56]} 27. Rxb6 {[%emt 0:00:02]} axb6 {[%emt 0:00:07]} 28. Bb4 {[%emt 0:01:31]} Kf7 {[%emt 0:02:06]} 29. Rc3 {[%emt 0:01:16]} h5 {[%emt 0:02:49]} 30. f4 {[%emt 0:03:36]} Kg6 {[%emt 0:03:20]} 31. e4 {[%emt 0:02:13]} Bb5 {[%emt 0:04:19]} 32. Rc2 {[%emt 0:11:42]} Ra8 {[%emt 0:03:26]} 33. a3 {[%emt 0:00:43]} Rd8 {[%emt 0:00:07]} 34. Rd2 {[%emt 0:00:39]} Rxd2+ {[%emt 0:00:46]} 35. Bxd2 {[%emt 0:00:01]} Bc6 {[%emt 0:01:31]} 36. Ke3 {[%emt 0:00:19]} e5 {[%emt 0:00:50]} 37. Bc3 {[%emt 0:04:07]} Kf7 {[%emt 0:02:00]} 38. fxe5 {[%emt 0:00:24]} fxe5 {[%emt 0:00:02]} 39. Bxe5 {[%emt 0:00:12]} g5 {[%emt 0:00:03]} 40. h4 {[%emt 0:01:42]} gxh4 {[%emt 0:00:51]} 41. gxh4 {[%emt 0:00:01]} Ke6 {[%emt 0:00:12]} 42. Bc7 {[%emt 0:00:14]} b5 {[%emt 0:00:06]} 43. Kd4 {[%emt 0:00:18]} Bd7 {[%emt 0:00:44]} 44. Kc5 {[%emt 0:03:24]} Be8 {[%emt 0:00:11]} 45. Kb6 {[%emt 0:03:22]} Bd7 {[%emt 0:00:13]} 1/2-1/2

[Event "CHN-chW 2019"]
[Site "Xinghua"]
[Date "2019.05.18"]
[Round "7.9"]
[White "Xiao, Yiyi"]
[Black "Huang, Qian"]
[Result "1/2-1/2"]
[ECO "D45"]
[WhiteElo "2290"]
[BlackElo "2440"]
[Annotator "RC"]
[PlyCount "126"]
[EventDate "2019.05.11"]
[EventType "tourn"]
[EventCountry "CHN"]
[SourceTitle "playchess.com"]
[Source "ChessBase"]
[SourceQuality "1"]
[TimeControl "5400+30"]

1. d4 {[%emt 0:00:00]} d5 {[%emt 0:02:20]} 2. c4 {[%emt 0:00:00]} c6 {[%emt 0:00:13]} 3. Nc3 {[%emt 0:00:28]} Nf6 {[%emt 0:00:17]} 4. e3 {[%emt 0:00:09]} e6 {[%emt 0:00:29]} 5. Nf3 {[%emt 0:00:11]} a6 {[%emt 0:00:08]} 6. Qc2 {[%emt 0:01:47]} c5 {[%emt 0:00:17]} 7. cxd5 {[%emt 0:01:41]} exd5 {[%emt 0:00:09]} 8. Be2 {[%emt 0:00:21]} Nc6 {[%emt 0:03:31]} 9. O-O {[%emt 0:00:27]} Be6 {[%emt 0:00:14]} 10. Rd1 {[%emt 0:06:46]} cxd4 {[%emt 0:00:19]} 11. Nxd4 {[%emt 0:00:15]} Nxd4 {[%emt 0:00:07]} 12. exd4 {[%emt 0:05:01]} Bd6 {[%emt 0:08:20]} 13. Bf3 {[%emt 0:08:00]} h6 {[%emt 0:03:33]} 14. Qb3 {[%emt 0:03:00]} Rb8 {[%emt 0:10:00]} 15. Ne2 {[%emt 0:15:42]} O-O {[%emt 0:10:27]} 16. Bf4 {[%emt 0:00:14]} Ne4 {[%emt 0:03:33]} 17. Bxe4 {[%emt 0:09:33]} dxe4 {[%emt 0:00:26]} 18. d5 {[%emt 0:00:25]} Bf5 {[%emt 0:09:20]} 19. Qg3 {[%emt 0:00:32]} Bxf4 {[%emt 0:00:06]} 20. Qxf4 {[%emt 0:00:11]} Bg6 {[%emt 0:00:19]} 21. Nc3 {[%emt 0:03:34]} Qg5 {[%emt 0:07:44]} 22. Qxg5 {[%emt 0:04:35]} hxg5 {[%emt 0:00:05]} 23. d6 {[%emt 0:02:19]} Rbd8 {[%emt 0:07:45]} 24. Nd5 {[%emt 0:12:02]} Kh7 {[%emt 0:00:17]} 25. Nb6 {[%emt 0:01:01]} f5 {[%emt 0:01:14]} 26. Rd4 {[%emt 0:02:20]} Rf6 {[%emt 0:13:07]} 27. Rad1 {[%emt 0:00:05]} Bh5 {[%emt 0:00:07]} 28. f3 {[%emt 0:04:42]} exf3 {[%emt 0:02:10]} 29. gxf3 {[%emt 0:00:04]} Bxf3 {[%emt 0:00:08]} 30. R1d2 {[%emt 0:00:04]} Re6 {[%emt 0:03:34]} 31. Na4 {[%emt 0:04:27]} Re5 {[%emt 0:03:13]} 32. b4 {[%emt 0:03:44]} Bc6 {[%emt 0:00:47]} 33. Nc5 {[%emt 0:00:10]} a5 {[%emt 0:01:49]} 34. Nd3 {[%emt 0:03:20]} Re6 {[%emt 0:02:48]} 35. Nc5 {[%emt 0:00:05]} Re5 {[%emt 0:03:58]} 36. Nd3 {[%emt 0:00:06]} Re4 {[%emt 0:02:10]} 37. Nc5 {[%emt 0:00:09]} Rxd4 {[%emt 0:01:43]} 38. Rxd4 {[%emt 0:00:01]} axb4 {[%emt 0:00:57]} 39. Ne6 {[%emt 0:03:44]} Re8 {[%emt 0:00:04]} 40. d7 {[%emt 0:04:28]} Bxd7 {[%emt 0:00:03]} 41. Nxg5+ {[%emt 0:00:04]} Kg6 {[%emt 0:00:05]} 42. Rxd7 {[%emt 0:00:03]} Kxg5 {[%emt 0:00:04]} 43. Rxg7+ {[%emt 0:00:04]} Kf4 {[%emt 0:00:04]} 44. Rxb7 {[%emt 0:00:16]} Kf3 {[%emt 0:00:10]} 45. Kf1 {[%emt 0:00:09]} Rc8 {[%emt 0:00:38]} 46. Ke1 {[%emt 0:00:08]} Rc1+ {[%emt 0:01:33]} 47. Kd2 {[%emt 0:00:01]} Ra1 {[%emt 0:00:04]} 48. h4 {[%emt 0:00:24]} Rxa2+ {[%emt 0:00:22]} 49. Kd3 {[%emt 0:00:34]} Ra3+ {[%emt 0:01:13]} 50. Kd4 {[%emt 0:00:40]} f4 {[%emt 0:01:53]} 51. h5 {[%emt 0:00:05]} Ra5 {[%emt 0:00:20]} 52. h6 {[%emt 0:01:34]} Rh5 {[%emt 0:00:04]} 53. h7 {[%emt 0:00:02]} Kg2 {[%emt 0:00:53]} 54. Ke4 {[%emt 0:02:31]} f3 {[%emt 0:00:14]} 55. Rg7+ {[%emt 0:00:03]} Kf2 {[%emt 0:00:03]} 56. Rf7 {[%emt 0:00:15]} Ke2 {[%emt 0:01:31]} 57. Rxf3 {[%emt 0:00:31]} Rh4+ {[%emt 0:00:05]} 58. Rf4 {[%emt 0:00:10]} Rxh7 {[%emt 0:00:02]} 59. Kd4 {[%emt 0:03:47]} Rb7 {[%emt 0:00:04]} 60. Rh4 {[%emt 0:00:24]} Kd1 {[%emt 0:00:58]} 61. Kc4 {[%emt 0:01:18]} Kc2 {[%emt 0:01:19]} 62. Rh2+ {[%emt 0:00:06]} Kc1 {[%emt 0:00:02]} 63. Kb3 {[%emt 0:00:06]} Rb8 {[%emt 0:01:58]} 1/2-1/2